[Event "Austrian Bundesliga 2023-24"]
[Site "Austria"]
[Date "2024.03.21"]
[Round "8.35"]
[White "Kruckenhauser, Arthur"]
[Black "Wagner, Dennis"]
[Result "0-1"]
[ECO "B30"]
[WhiteElo "2355"]
[BlackElo "2620"]
[Annotator "TA"]
[PlyCount "128"]
[EventDate "2023.10.21"]
[EventType "team-tourn"]
[EventCountry "AUT"]
[SourceTitle "playchess.com"]
[Source "ChessBase"]
[SourceQuality "1"]
[TimeControl "40/5400+30:1800+30"]

{[%evp 9,128,18,1,-2,13,0,39,13,41,38,41,21,20,17,29,31,24,17,9,3,11,10,8,10,16,16,10,0,20,0,11,0,0,0,0,0,0,5,14,0,22,14,14,0,0,0,16,12,13,-1,18,-20,0,-12,0,-15,-9,0,13,0,0,0,0,0,0,-104,-114,-197,-178,-200,-198,-189,-162,-179,-66,-66,-82,-114,-111,-136,-149,-181,-182,-192,-183,-155,-153,-285,-275,-308,-256,-1284,-779,-1497,-1373,-1823,-1674,-5181,-4371,-12744,-12786,-12799,-12799,-29976,-29959,-29982,-29983,-29984,-29985,-29985,-29986,-29986,-29985,-29987,-29988,-29989,-29990,-29990,-29991,-29991,-29992]} 1. e4 {[%emt 0:00:03]} c5 {[%emt 0:00:13]} 2. Nf3 {[%emt 0:00:43]} Nc6 {[%emt 0:00:13]} 3. Bb5 {[%emt 0:01:03]} e6 {[%emt 0:00:11]} 4. Bxc6 {[%emt 0:00:38]} bxc6 {[%emt 0:00:07]} 5. b3 {[%emt 0:00:29]} Ne7 {[%emt 0:00:28]} 6. Bb2 {[%emt 0:00:18]} d6 {[%emt 0:01:21]} 7. e5 {[%emt 0:03:36]} Nf5 {[%emt 0:00:17]} 8. O-O {[%emt 0:09:41] Weiß steht etwas besser.} f6 {[%emt 0:05:38]} 9. exd6 {[%emt 0:09:53]} Bxd6 {[%emt 0:00:18]} 10. Na3 {[%emt 0:07:25]} e5 {[%emt 0:05:05]} 11. d3 {[%emt 0:04:07]} O-O {[%emt 0:00:32]} 12. Nc4 {[%emt 0:00:30]} Bc7 {[%emt 0:02:05]} 13. Ba3 {[%emt 0:07:38]} Bb6 {[%emt 0:01:22]} 14. Nfd2 {[%emt 0:02:42]} Nd4 {[%emt 0:02:05]} 15. Ne4 {[%emt 0:07:07]} Qe7 {[%emt 0:07:18]} 16. Re1 {[%emt 0:01:33]} Be6 {[%emt 0:00:53]} 17. c3 {[%emt 0:08:02]} Nb5 {[%emt 0:04:17]} 18. Bb2 {[%emt 0:01:07][%cal Of2f4]} Nc7 {[%emt 0:10:08]} 19. Qe2 {[%emt 0:06:21]} (19. a4 $5 Na6 20. Ba3 $11) 19... Rad8 {[%emt 0:02:13]} 20. Rad1 {[%emt 0:02:13]} Bxc4 {[%emt 0:05:54]} 21. dxc4 {[%emt 0:01:50]} f5 {[%emt 0:02:10]} 22. Rxd8 {[%emt 0:03:36]} Rxd8 {[%emt 0:00:49]} 23. Ng3 {[%emt 0:01:15][%csl LRe5,LRf5]} Qf6 {[%emt 0:04:17]} 24. f3 {[%emt 0:02:54]} (24. Qxe5 Re8 25. Qxe8+ Nxe8 26. Rxe8+ Kf7 $19) 24... Re8 {[%emt 0:02:23]} 25. Qd3 {[%emt 0:04:11]} g6 {[%emt 0:00:25]} 26. Ba3 {[%emt 0:02:14]} Nb5 {[%emt 0:21:30]} 27. Bc1 {[%emt 0:02:26]} Nd6 {[%emt 0:00:08][%cal Bb5d6,Bd6f7,Bf7g5,Bg5e4][%mdl 32] [#]} 28. Bg5 $1 {[%emt 0:01:35]} Qe6 {[%emt 0:00:11]} (28... Qf8 29. Nh1) 29. Qe2 {[%emt 0:04:02]} Ba5 {[%emt 0:02:14]} 30. Bd2 {[%emt 0:01:06]} Nf7 {[%emt 0:04:33]} 31. Rd1 {[%emt 0:00:35]} h5 {[%emt 0:02:57]} 32. Be1 {[%emt 0:01:07]} e4 {[%emt 0:07:05]} 33. fxe4 {[%emt 0:01:17]} f4 {[%emt 0:00:04]} 34. Nf1 {[%emt 0:00:31]} Ng5 {[%emt 0:01:29]} 35. e5 {[%emt 0:01:33]} Qxe5 {[%emt 0:04:33]} 36. Qxe5 {[%emt 0:00:06]} Rxe5 {[%emt 0:00:03]} 37. b4 {[%emt 0:00:05]} (37. Bd2 $11) 37... Bb6 $17 {[%emt 0:00:42][%cal Oe5e1]} 38. Bf2 {[%emt 0:00:20]} (38. h4 $17 Ne4 (38... cxb4+ 39. Kh1 $17) 39. Kh2) 38... Ne4 $1 $19 {[%emt 0:01:46]} 39. Re1 {[%emt 0:01:13]} Nxf2 $1 {[%emt 0:00:48]} 40. Rxe5 {[%emt 0:00:00]} Nd3 {[%emt 0:00:00][%csl LRb4,LRe5]} 41. bxc5 {[%emt 0:10:22]} (41. Re8+ $2 Kf7 42. Rb8 cxb4+ 43. Rxb6 axb6 44. cxb4 Nxb4 $19) (41. Re6 $2 cxb4+ 42. Kh1 bxc3 $19) 41... Bxc5+ {[%emt 0:00:54]} ({Vorzuziehen ist} 41... Nxe5 $19 42. cxb6 axb6) 42. Rxc5 $15 {[%emt 0:00:07]} Nxc5 $19 {[%emt 0:00:04][%mdl 4096] Endspiel. KN-KN. Schwarz hat alles unter Kontrolle.} 43. Nd2 {[%emt 0:06:59] [#] Verhindert Ne4} Kf7 $1 {[%emt 0:01:27]} 44. Kf2 {[%emt 0:02:27]} Kf6 {[%emt 0:02:26]} 45. Kf3 {[%emt 0:01:50]} Kf5 {[%emt 0:00:16]} 46. Ke2 {[%emt 0:02:50]} g5 {[%emt 0:10:17]} 47. Nf3 {[%emt 0:01:20] [#]} Ne6 {[%emt 0:00:05]} 48. Kd3 {[%emt 0:00:49]} (48. Nd2 $17) 48... g4 {[%emt 0:05:28]} 49. Nd2 {[%emt 0:04:42]} (49. Nd4+ Nxd4 50. Kxd4 h4 $19) 49... h4 {[%emt 0:01:24]} 50. h3 $2 {[%emt 0:01:00]} (50. a3) 50... gxh3 {[%emt 0:05:21]} ({Nicht} 50... Ng5 51. hxg4+ Kxg4 52. Ke2 $17) 51. gxh3 {[%emt 0:00:04]} Ng5 {[%emt 0:00:05]} 52. c5 {[%emt 0:01:32]} Nxh3 {[%emt 0:03:31] ...Nf2+ ist eine echte Drohung.} 53. Nf3 {[%emt 0:00:12]} Kg4 {[%emt 0:00:15]} 54. Ne5+ {[%emt 0:00:07]} Kg3 {[%emt 0:00:04] ( -> ...Nf2+)} 55. Nxc6 {[%emt 0:00:11]} Nf2+ {[%emt 0:04:12]} 56. Kd4 {[%emt 0:04:22]} h3 {[%emt 0:00:04] Schwarz setzt Matt.} 57. Nxa7 {[%emt 0:00:36]} h2 {[%emt 0:00:03]} 58. c6 {[%emt 0:00:05]} h1=Q {[%emt 0:00:04]} ({Lieber nicht} 58... h1=R 59. c7 Rd1+ 60. Kc4 $11) 59. c7 {[%emt 0:00:03]} Qe4+ {[%emt 0:00:59]} 60. Kc5 {[%emt 0:00:04]} Nd3+ {[%emt 0:00:22]} 61. Kb6 {[%emt 0:00:22]} Qe6+ {[%emt 0:00:29]} 62. Kb5 {[%emt 0:00:33]} Qd7+ {[%emt 0:01:11]} 63. Kb6 {[%emt 0:00:06]} Qd6+ {[%emt 0:00:22]} 64. Nc6 {[%emt 0:00:16]} Qc5+ {[%emt 0:00:20] Gewichteter Fehlerwert: Weiß=0.54/Schwarz=0.06 (makellos) .  Fehler:       	Weiß=4     	Schwarz=1     Ungenau:       	Weiß=3     	Schwarz=2     OK:         	Weiß=13    	Schwarz=19    Bester:       	Weiß=5     	Schwarz=3     Stark:        	---       	Schwarz=3} 0-1

[Event "Austrian Bundesliga 2023-24"]
[Site "Austria"]
[Date "2024.03.21"]
[Round "8.36"]
[White "Buhmann, Rainer"]
[Black "Ciolek, Andreas"]
[Result "1-0"]
[ECO "D38"]
[WhiteElo "2568"]
[BlackElo "2302"]
[Annotator "TA"]
[PlyCount "81"]
[EventDate "2023.10.21"]
[EventType "team-tourn"]
[EventCountry "AUT"]
[SourceTitle "playchess.com"]
[Source "ChessBase"]
[SourceQuality "1"]
[TimeControl "40/5400+30:1800+30"]

{[%evp 11,81,21,22,13,7,18,8,14,17,10,18,0,31,37,43,38,54,27,53,47,54,42,47,43,58,32,15,30,32,22,21,15,66,66,155,145,117,121,166,132,143,125,198,147,131,128,245,264,240,185,358,187,179,181,425,400,427,426,520,518,487,473,893,913,1064,512,524,496,787,717,29991,29985]} 1. d4 {[%emt 0:00:06]} d5 {[%emt 0:00:11]} 2. c4 {[%emt 0:00:10]} e6 {[%emt 0:00:06]} 3. Nf3 {[%emt 0:00:07]} Nf6 {[%emt 0:00:06]} 4. Nc3 {[%emt 0:00:09]} Bb4 {[%emt 0:01:38]} 5. Qa4+ {[%emt 0:00:17]} Nc6 {[%emt 0:00:09]} 6. e3 {[%emt 0:00:32]} O-O {[%emt 0:01:40]} 7. Qc2 {[%emt 0:00:59]} Re8 {[%emt 0:06:22]} 8. Bd2 {[%emt 0:00:43]} b6 {[%emt 0:08:56]} 9. a3 {[%emt 0:05:39] The position is equal.} Bf8 {[%emt 0:14:32]} 10. cxd5 {[%emt 0:11:59]} exd5 {[%emt 0:02:23]} 11. Bb5 {[%emt 0:01:32]} Bb7 {[%emt 0:06:10]} 12. Ne2 {[%emt 0:10:10]} Re6 {[%emt 0:07:28]} 13. Nf4 {[%emt 0:10:23]} Rd6 {[%emt 0:00:51]} 14. Rc1 {[%emt 0:04:56]} a6 $1 {[%emt 0:04:37]} 15. Bd3 {[%emt 0:03:39]} Rc8 {[%emt 0:09:20]} 16. Bf5 {[%emt 0:02:29]} Rb8 {[%emt 0:00:40][%cal Of6e4]} 17. O-O $40 {[%emt 0:03:58][%mdl 128] White has some attack.} g6 {[%emt 0:04:17]} 18. Bh3 {[%emt 0:02:09]} Ne4 {[%emt 0:03:52]} 19. g3 {[%emt 0:02:58]} g5 {[%emt 0:05:04]} 20. Nd3 {[%emt 0:03:28]} Rh6 {[%emt 0:00:17]} 21. Bg2 {[%emt 0:00:22]} Bd6 {[%emt 0:03:19]} (21... f6 $11) 22. Nfe5 $14 {[%emt 0:04:18]} Ne7 {[%emt 0:02:37]} (22... Nxe5 $1 $14 23. dxe5 Be7) 23. f3 {[%emt 0:03:38]} Nxd2 {[%emt 0:02:50]} 24. Qxd2 {[%emt 0:00:05]} f6 {[%emt 0:10:00] Against f4} 25. Ng4 {[%emt 0:05:38]} Rg6 {[%emt 0:00:11]} 26. e4 {[%emt 0:02:36] [#] Hoping for e5. White is more active.} f5 {[%emt 0:03:45]} (26... Nc6 $16 {is a better defense.}) 27. e5 {[%emt 0:08:12]} (27. exf5 $18 Nxf5 28. Nde5 Bxe5 29. dxe5 (29. Nxe5 Rg7 $18)) 27... fxg4 $16 {[%emt 0:00:10]} 28. fxg4 {[%emt 0:00:29]} c6 {[%emt 0:01:37]} 29. exd6 $18 {[%emt 0:00:57]} Qxd6 {[%emt 0:00:03]} 30. Rce1 {[%emt 0:02:58]} (30. Ne5 Rg7 31. Qf2 a5) 30... Rf8 $2 {[%emt 0:00:34]} (30... a5 31. Ne5 Rg7) 31. Qe3 {[%emt 0:02:13]} (31. Rxf8+ $142 Kxf8 32. Ne5) 31... Rxf1+ {[%emt 0:00:33]} 32. Bxf1 {[%emt 0:00:19]} Kf8 {[%emt 0:01:10]} (32... Rg7 33. b4 Nc8) 33. Ne5 {[%emt 0:00:29]} Rg7 {[%emt 0:00:46]} 34. Bd3 {[%emt 0:00:38]} Bc8 {[%emt 0:00:33]} 35. Qf2+ {[%emt 0:01:13]} Ke8 {[%emt 0:00:08]} 36. Bf5 {[%emt 0:03:30] [#] Bxc8 would now be deadly.} Bxf5 {[%emt 0:00:55]} (36... Be6 $142 37. Rf1 Ng6 38. Nxg6 (38. Bxg6+ hxg6 39. Qe3 c5 $18) 38... Rxg6 39. Bxg6+ hxg6) 37. gxf5 {[%emt 0:00:03] Black must now prevent f6.} Rg8 {[%emt 0:00:29]} 38. f6 {[%emt 0:01:39]} (38. Qe2 $142 {Intending Qh5+ and mate.} g4 39. Qxa6 (39. Nxg4 b5 $18)) 38... Rf8 {[%emt 0:00:02]} 39. Ng4 {[%emt 0:00:52]} Rf7 {[%emt 0:01:03]} (39... h5 $142) 40. Qf5 {[%emt 0:00:00]} Qc7 {[%emt 0:00:00] Repels Qc8+} 41. Qxg5 {[%emt 0:02:51] Weighted Error Value: White=0.31/Black=0.58.  Mistake:       	White=2     	Black=8      Inaccurate:     	White=2     	Black=3      OK:         	White=15    	Black=11     Best:        	White=1     	Black=1      Strong:       	---       	Black=1} (41. Rxe7+ Qxe7 42. Qc8+ (42. Qxg5 Qe4 $16) 42... Qd8 43. Qxc6+ (43. Qxa6 h5 $11) 43... Kf8 $16) 1-0

[Event "Austrian Bundesliga 2023-24"]
[Site "Austria"]
[Date "2024.03.22"]
[Round "9.1"]
[White "Donchenko, Alexander"]
[Black "Ragger, Markus"]
[Result "1-0"]
[ECO "D85"]
[WhiteElo "2631"]
[BlackElo "2605"]
[Annotator "TA"]
[PlyCount "79"]
[EventDate "2023.10.21"]
[EventType "team-tourn"]
[EventCountry "AUT"]
[SourceTitle "playchess.com"]
[Source "ChessBase"]
[SourceQuality "1"]
[TimeControl "40/5400+30:1800+30"]

{[%evp 16,79,43,0,22,20,4,6,18,19,28,0,0,0,2,22,16,0,0,0,0,5,15,10,9,16,62,61,83,66,99,80,68,79,59,76,35,41,73,42,186,183,229,239,222,211,652,222,237,223,354,244,523,522,497,506,1006,540,1097,1133,1068,1036,1893,532,29994,29995]} 1. d4 {[%emt 0:00:05]} Nf6 {[%emt 0:00:05]} 2. c4 {[%emt 0:00:13]} g6 {[%emt 0:00:03]} 3. Nc3 {[%emt 0:00:13]} d5 {[%emt 0:00:02]} 4. Nf3 {[%emt 0:00:08]} Bg7 {[%emt 0:00:05]} 5. cxd5 {[%emt 0:00:08]} Nxd5 {[%emt 0:00:04]} 6. e4 {[%emt 0:00:06]} Nxc3 {[%emt 0:00:04]} 7. bxc3 {[%emt 0:00:06]} c5 {[%emt 0:00:05]} 8. Be3 {[%emt 0:00:08]} Bg4 {[%emt 0:00:43]} 9. Qa4+ {[%emt 0:01:32]} (9. dxc5 Bxc3+ 10. Bd2 Bxa1 11. Qxa1 f6 $17 (11... O-O 12. Bh6 $11)) 9... Nd7 {[%emt 0:00:42]} 10. Be2 {[%emt 0:04:03]} O-O {[%emt 0:05:46]} 11. Rd1 {[%emt 0:00:48]} (11. dxc5 $2 Bxc3+ (11... Bxf3 $2 12. Bxf3 Bxc3+ 13. Ke2 $19) 12. Nd2 Nxc5 $19 (12... Bxa1 $2 13. Bxg4 Ne5 14. Be2 $19)) 11... cxd4 {[%emt 0:06:56] The position is equal.} 12. cxd4 {[%emt 0:00:15]} Nf6 {[%emt 0:00:12]} 13. d5 {[%emt 0:01:17]} b5 {[%emt 0:12:28]} 14. Qb4 {[%emt 0:00:51] Strongly threatening e5.} (14. Qxb5 Nxe4 15. Qc4 Qa5+ 16. Kf1 Bf5 $17) 14... a5 {[%emt 0:02:02]} 15. Qb1 {[%emt 0:00:21]} b4 {[%emt 0:01:12]} 16. O-O {[%emt 0:00:29]} Nd7 {[%emt 0:15:48]} 17. h3 {[%emt 0:15:41]} Bxf3 {[%emt 0:00:04]} 18. Bxf3 {[%emt 0:00:07]} Nb6 {[%emt 0:05:25]} 19. Qb3 {[%emt 0:06:48] Prevents Na4.} Rc8 {[%emt 0:13:20]} 20. Rc1 {[%emt 0:05:32]} Bc3 {[%emt 0:00:12]} (20... Qd6 $11) 21. Bg4 $1 $14 {[%emt 0:07:50]} a4 {[%emt 0:03:45] Black is weak on the light squares} 22. Qd1 {[%emt 0:06:18]} Ra8 {[%emt 0:03:18] [#]} 23. Rxc3 $1 {[%emt 0:17:20]} bxc3 {[%emt 0:00:01]} 24. Qd4 {[%emt 0:00:08][%csl LRb6,LRc3][%cal Oe3h6] Repels Nc4} Re8 {[%emt 0:03:36]} 25. Rc1 {[%emt 0:08:34]} Nd7 {[%emt 0:01:13]} 26. Rxc3 {[%emt 0:01:26]} Nf6 {[%emt 0:06:09]} 27. Bf3 $40 {[%emt 0:03:19][%mdl 128] White is up to no good. White has more active pieces.} Qa5 {[%emt 0:04:51] Loses the game.} (27... e5 $14 28. dxe6 fxe6) 28. e5 $18 {[%emt 0:03:49]} Nxd5 {[%emt 0:02:40]} (28... Nd7 $142 29. e6 fxe6) 29. Bxd5 {[%emt 0:01:00] This pair of bishops is nice.} Rad8 {[%emt 0:00:37]} 30. Rc5 {[%emt 0:00:46]} Qe1+ {[%emt 0:00:41]} 31. Kh2 {[%emt 0:00:02]} e6 {[%emt 0:00:03] [#]} 32. Bh6 $1 {[%emt 0:00:29]} (32. Qxa4 exd5 $11) 32... a3 {[%emt 0:07:44]} (32... exd5 $2 33. e6 $18) (32... Rxd5 33. Rxd5) (32... Qe2 {keeps fighting.}) 33. Rc1 {[%emt 0:07:06]} (33. Bd2 Qd1 (33... Rxd5 $2 {is the wrong capture.} 34. Rxd5 $18) 34. Qf4 Rxd5 35. Rxd5 exd5 $15) 33... Rxd5 $2 {[%emt 0:06:01] [#]} (33... Qe2 {was worth a try.}) 34. Qa4 $1 {[%emt 0:00:10][%cal Ra4e8]} ({Worse is} 34. Qxd5 Qxc1 (34... Qxf2 35. Qd7 Rf8 36. Rc8) 35. Qd7 Qc8 $17 (35... Qxh6 36. Qxe8+ Kg7 37. Qa4 $11)) 34... Qxe5+ {[%emt 0:00:05]} 35. Bf4 {[%emt 0:00:06]} Qd4 {[%emt 0:00:53]} (35... Qf6 $142 36. Qxe8+ Kg7) 36. Qxe8+ {[%emt 0:00:14]} Kg7 {[%emt 0:00:01]} 37. Be3 {[%emt 0:01:01]} Qe5+ {[%emt 0:00:14]} 38. g3 {[%emt 0:03:02] Threatens to win with Rc8.} Rd3 {[%emt 0:01:24]} 39. Bc5 {[%emt 0:01:28]} (39. Rc8 $142 {[%csl Gc8][%cal Re8h8]} Kf6 40. Bc5 (40. Qh8+ Kf5 $18)) 39... Qd5 {[%emt 0:00:45]} 40. Bf8+ {[%emt 0:00:00] Weighted Error Value: White=0.30/Black=0.60.  Mistake:       	---       	Black=6      Inaccurate:     	White=2     	Black=3      OK:         	White=12    	Black=11     Best:        	White=3     	Black=3      Strong:       	White=2     	---} 1-0

[Event "Austrian Bundesliga 2023-24"]
[Site "Austria"]
[Date "2024.03.22"]
[Round "9.2"]
[White "Handler, Lukas"]
[Black "Bluebaum, Matthias"]
[Result "0-1"]
[ECO "D45"]
[WhiteElo "2436"]
[BlackElo "2655"]
[Annotator "TA"]
[PlyCount "68"]
[EventDate "2023.10.21"]
[EventType "team-tourn"]
[EventCountry "AUT"]
[SourceTitle "playchess.com"]
[Source "ChessBase"]
[SourceQuality "1"]
[TimeControl "40/5400+30:1800+30"]

{[%evp 14,68,0,0,0,0,0,0,0,0,10,0,0,0,0,-18,-31,-45,-30,-44,-31,-86,-75,-80,-53,-69,-39,-57,-25,-78,-72,-85,-85,-84,-81,-127,-124,-110,-115,-115,-128,-137,-102,-156,-81,-132,-146,-289,-304,-291,-302,-538,-494,-535,-538,-29997,-29998]} 1. d4 {[%emt 0:00:04]} Nf6 {[%emt 0:00:09]} 2. c4 {[%emt 0:00:04]} e6 {[%emt 0:00:04]} 3. Nf3 {[%emt 0:00:04]} d5 {[%emt 0:00:05]} 4. Nc3 {[%emt 0:00:07]} c6 {[%emt 0:00:12]} 5. e3 {[%emt 0:00:19]} Nbd7 {[%emt 0:00:05]} 6. Be2 {[%emt 0:00:22]} Bd6 {[%emt 0:00:21]} 7. O-O {[%emt 0:00:26]} O-O {[%emt 0:00:06]} 8. b3 {[%emt 0:00:11]} b6 {[%emt 0:00:31]} 9. Bb2 {[%emt 0:00:08]} Bb7 {[%emt 0:00:05]} 10. Bd3 {[%emt 0:01:11]} Re8 {[%emt 0:00:36] Die Stellung ist ausgeglichen.} 11. Rc1 {[%emt 0:04:01]} h6 {[%emt 0:01:54]} 12. Re1 {[%emt 0:03:36]} dxc4 {[%emt 0:04:19]} 13. bxc4 {[%emt 0:16:46]} c5 {[%emt 0:00:09]} 14. Bb1 {[%emt 0:11:20]} cxd4 {[%emt 0:04:55]} 15. exd4 {[%emt 0:00:19]} Bf4 {[%emt 0:03:15]} 16. Rc2 {[%emt 0:07:27]} Rc8 {[%emt 0:00:19]} 17. Ne2 {[%emt 0:05:37]} (17. g3 $15 Bb8 18. Nd2) 17... Bxf3 $17 {[%emt 0:08:11]} 18. gxf3 {[%emt 0:01:09]} Bb8 {[%emt 0:00:04]} 19. Ng3 {[%emt 0:02:21]} Nf8 {[%emt 0:02:10][%cal Bd7f8,Bf8g6,Bg6h4][%mdl 32]} 20. d5 {[%emt 0:06:50]} Ng6 {[%emt 0:14:45]} 21. Rd2 {[%emt 0:04:25]} (21. Kh1 $11) 21... Bf4 {[%emt 0:03:56]} (21... Rxc4 $2 22. dxe6 Qc8 23. Bxf6 $18) 22. Rd3 {[%emt 0:05:32] dxe6 wäre nun fies.} e5 {[%emt 0:04:50]} (22... Rxc4 $2 23. dxe6 Qc8 24. exf7+ Kxf7 25. Rxe8 Qxe8 26. Rd8 $18) 23. Qa4 {[%emt 0:02:31]} Nh4 {[%emt 0:06:07][%cal Ob6b5] Und jetzt ...b5! wäre schön.} 24. Red1 {[%emt 0:05:30] [#]} ({Besser ist} 24. Kh1) 24... b5 $1 {[%emt 0:08:09][%mdl 512]} 25. cxb5 {[%emt 0:04:30][%cal Ob2e5]} (25. Qxb5 $2 Rb8 26. Qc6 Rb6 $19 (26... Rxb2 $2 27. d6 $19)) 25... Qd7 {[%emt 0:00:01]} 26. Kh1 {[%emt 0:02:52]} Qh3 {[%emt 0:13:10]} 27. Rg1 {[%emt 0:02:09] Gegen Qg2+ gerichtet.} Red8 {[%emt 0:05:53]} 28. Qd1 {[%emt 0:03:13]} ({Vorzuziehen ist} 28. d6) 28... Rc5 {[%emt 0:02:20] Schwarz hat aktiveres Spiel.} (28... e4 $142 $1 {[%cal Re4d3]} 29. Bxf6 (29. fxe4 $2 Ng4 $19) 29... exd3 30. Bxd8 Rc1 31. Bxh4 (31. Qxc1 $2 Nxf3 32. Rg2 Bxc1 $19) 31... Rxd1 32. Rxd1 d2 (32... Qxh4 33. Bxd3 Bc7 34. Kg2 $17)) 29. d6 {[%emt 0:03:28]} (29. Ba3 $142 Rcxd5 (29... Rxb5 30. Be7 $15) 30. Be7) 29... Rxb5 $40 {[%emt 0:00:36][%mdl 128] Weiss ist in Schwierigkeiten.} 30. Bc3 {[%emt 0:01:13] [#]} (30. Rb3 $17 Rd5 31. Rd3 R8xd6 32. Ba3) 30... e4 $1 $19 {[%emt 0:08:18][%mdl 512]} 31. Bxf6 {[%emt 0:01:35] [#]} (31. fxe4 $2 Ng4 $19) 31... Rh5 $1 {[%emt 0:00:03][%cal Oh4f3]} (31... Rxb1 32. Qxb1 exd3 33. Bxd8 $11) 32. Nf1 $2 {[%emt 0:05:39] [#]} (32. Bxd8 $2 Nxf3 33. Rg2 Qxh2+ 34. Rxh2 Rxh2#) (32. Bxh4 Rxh4 33. Rg2 exd3 34. Bxd3 Rxd6 (34... Bxd6 35. Bf5 $11) 35. Qe1) 32... Bxh2 $1 {[%emt 0:00:12]} ({Minderwertig wäre} 32... exd3 33. Rxg7+ Kf8 34. Qxd3 $11) 33. Rxg7+ {[%emt 0:01:06]} Kf8 {[%emt 0:00:02] ( -> ...Bg3+)} 34. Ne3 {[%emt 0:00:42]} Bg3+ {[%emt 0:00:06] Gewichteter Fehlerwert: Weiß=0.47/Schwarz=0.08 (makellos) .  Fehler:       	Weiß=7     	Schwarz=1     Ungenau:       	Weiß=1     	Schwarz=3     OK:         	Weiß=8     	Schwarz=10    Bester:       	Weiß=3     	Schwarz=5     Stark:        	---       	Schwarz=2     Brilliant:      	---       	Schwarz=1} 0-1